Cogmind - Beta 16 @@@ ROGUE MODE // 2025.10.24 @ 17:14:41 Player: ChromeKnight Result: Destroyed by UN-OOU(j) with Overtuned Pulse Rifle Performance ------------- Evolutions (0) 0 Regions Visited (3) 600 Robots Destroyed (22) 110 Value Destroyed (471) 471 Prototype IDs (1) 20 Alien Tech Used (0) 0 Bonus (0) 0 TOTAL SCORE: 1201 Bonus ------- None Cogmind --------- Core Integrity 0/250 Matter 250/300 Energy 17/100 System Corruption 1% Temperature Cool (12) Movement Hovering (60) Location -8/Recycling Parts ------- > --- POWER (1) -------- (None) > --- PROPULSION (2) --- Improved Hover Unit > --- UTILITY (2) ------ Scrap Engine > --- WEAPON (2) ------- Makeshift Axe Makeshift Spear > --- INVENTORY (5) ---- Improved Hover Unit Makeshift Light Armor Plating Makeshift Sword Peak State ------------ > --- POWER ------------ (None) > --- PROPULSION ------- Improved Hover Unit Improved Hover Unit > --- UTILITY ---------- Scrap Engine > --- WEAPON ----------- Makeshift Axe Makeshift Spear > --- INVENTORY -------- Improved Hover Unit Makeshift Light Armor Plating Makeshift Sword [Rating: 31] Favorites ----------- Power Ion Engine Engine Ion Engine Propulsion Light Treads Treads Light Treads Hover Unit Improved Hover Unit Utility Small Storage Unit Device Cooling System Storage Small Storage Unit Processor Machine Analyzer Weapon Particle Gun Energy Gun Particle Gun Ballistic Gun Light Assault Rifle Launcher Subdweller Shrapnel Launcher Special Weapon Multitool Slashing Weapon Makeshift Axe Piercing Weapon Makeshift Spear Build | -11 -10 -10 -8 ------- Run | Yrd Mat Sub Rec Slots Evolved . | . . . . Power . | . . . . Propulsion . | . . . . Utility . | . . . . Weapon . | . . . . Parts Attached 23 | 7 6 5 5 Power 1 | 1 . . . Engine 1 | 1 . . . Core . | . . . . Reactor . | . . . . Propulsion 7 | 2 2 . 3 Treads 4 | 2 2 . . Leg . | . . . . Wheel . | . . . . Hover 3 | . . . 3 Flight . | . . . . Utility 4 | 1 1 1 1 Device 2 | . 1 . 1 Storage 1 | 1 . . . Processor 1 | . . 1 . Hackware . | . . . . Protection . | . . . . Artifact . | . . . . Weapon 11 | 3 3 4 1 Energy Gun 5 | 1 3 1 . Energy Cannon . | . . . . Ballistic Gun 2 | 2 . . . Ballistic Cannon . | . . . . Launcher 1 | . . 1 . Special Weapon 1 | . . 1 . Impact Weapon . | . . . . Slashing Weapon 1 | . . 1 . Piercing Weapon 1 | . . . 1 Special Melee Weapon . | . . . . Unidentified Prototypes 1 | . . . 1 Parts Lost 7 | . . 5 2 Power 1 | . . 1 . Propulsion 3 | . . 2 1 Utility 1 | . . 1 . Weapon 2 | . . 1 1 Highest Loss Streak 2 | . . 2 2 To Critical Strikes . | . . . . Average Backups 7 | . 6 7 7 Power . | . . . . Propulsion 3 | . 2 4 2 Utility . | . 2 . 1 Weapon 2 | . 1 2 3 Tool/Special . | . . . . Unused Backups 11 | . 4 4 3 Power . | . . . . Propulsion 2 | . . 1 1 Utility 7 | . 4 2 1 Weapon 2 | . . 1 1 Tool/Special . | . . . . Average Slot Usage (%) 90 | . 94 94 64 Engine 9 | . 14 9 . Treads 24 | . 28 27 . Hover 1 | . . . 16 Device 8 | . 8 9 . Storage 13 | . 14 14 13 Processor 4 | . . 4 13 Energy Gun 21 | . 16 23 13 Ballistic Gun 2 | . 12 . . Launcher 2 | . . 2 5 Peak Build Rating 31 | 6 11 13 31 Average Rating 10 | 3 9 11 11 On Entrance 6 | . 6 11 10 Avg Prop Armor Cover (%) . | . . . . Naked Turns . | . . . . Heaviest Build 18 | 13 18 18 16 Greatest Support 40 | 40 40 40 14 Greatest Overweight (x) 5 | . . 5 5 Average Overweight (x) . | . . . . Largest Inventory Capacity 8 | 8 8 8 8 Average Capacity 7 | 6 8 8 7 Most Carried 8 | 1 8 8 8 Average Carried 7 | . 6 7 7 Final Capacity 8 | 8 8 8 5 Final Carried 8 | 1 8 8 3 Class Distribution -------------------- 100% | Mutant Dominant Class ---------------- Mutant | -10/Materials Mutant | -10/Subcaves Mutant | -8/Recycling Resources | -11 -10 -10 -8 ----------- Run | Yrd Mat Sub Rec Matter Collected 687 | 189 155 118 225 Remotely . | . . . . Salvage Created 573 | . 247 100 226 Parts 46 | . 18 16 12 Haulers Intercepted . | . . . . Recyclers Shooed . | . . . . Parts Field Recycled . | . . . . Retrieved Matter . | . . . . Parts Self-Destructed 6 | . . 6 . Prevented . | . . . . Parts Restored . | . . . . Kills | -11 -10 -10 -8 ------- Run | Yrd Mat Sub Rec Combat Hostiles Destroyed 16 | . 8 6 2 Melee 1 | . . . 1 Guns 12 | . 8 3 1 AOE 3 | . . 3 . Classes Destroyed 11 | . 5 3 3 Worker 1 | . 1 . . Recycler 2 | . 1 . 1 Operator 1 | . 1 . . Turret 2 | . . 2 . Swarmer 10 | . 6 4 . Grunt 2 | . 2 . . Sentry 1 | . . . 1 Artisan 1 | . . 1 . Subdweller 2 | . . 2 . Scientist 1 | . . . 1 Scrapper 1 | . . . 1 Best Kill Streak 7 | . 7 6 2 Combat Bots Only 7 | . 7 4 1 Max Kills in Single Turn 2 | . 2 2 1 Gunslinging 1 | . 1 . . Exploded 2 | . . 2 . Melee 1 | . . . 1 Uniques/NPCs Destroyed . | . . . . Combat | -11 -10 -10 -8 -------- Run | Yrd Mat Sub Rec Hostile Shots Fired 90 | . 26 42 22 Missed 25 | . 5 13 7 Hits 65 | . 21 29 15 Projectile 65 | . 21 29 15 Critical Strikes 2 | . . . 2 Damage Taken 1188 | . 202 658 328 Core 258 | . 20 73 165 Absorbed by Shields . | . . . . Core Remaining (%) 100 | 100 . . . Volleys Fired 73 | . 39 25 9 Largest 2 | . 2 2 1 Hottest 130 | . 130 130 65 Shots Fired 133 | . 78 46 9 Gun 121 | . 78 35 8 Cannon . | . . . . Launcher 9 | . . 8 1 Special 3 | . . 3 . Kinetic 21 | . 12 8 1 Thermal 112 | . 66 38 8 Explosive . | . . . . Electromagnetic . | . . . . Robot Hit Streak 15 | . 15 7 2 Robot Miss Streak 5 | . 5 2 1 Penetration Max . | . . . . Secondary Targets 2 | . 2 . . Max Gunslinging Chain 1 | . 1 . . Shots Hit Robots 76 | . 46 23 7 Core Hits 32 | . 14 10 8 Critical Kills . | . . . . Critical Parts Destroyed . | . . . . Critical Strikes 2 | . 1 . 1 Burn 2 | . 1 . 1 Melee Attacks 8 | . . 5 3 Impact . | . . . . Slashing 5 | . . 5 . Piercing 3 | . . . 3 Sneak Attacks . | . . . . Combat Hostiles . | . . . . Follow-up Attacks . | . . . . Damage Inflicted 1533 | . 728 564 241 Guns 954 | . 728 149 77 Cannons . | . . . . Explosions 524 | . . 415 109 Melee 55 | . . . 55 Ramming . | . . . . Kinetic 605 | . 81 415 109 Thermal 873 | . 647 149 77 Explosive . | . . . . Electromagnetic . | . . . . Impact . | . . . . Slashing . | . . . . Piercing 55 | . . . 55 Highest Corruption 1 | . 1 1 1 Average Corruption 1 | . 1 1 1 Corruption Purged . | . . . . Corruption Blocked . | . . . . Effects 15 | . . 12 3 Message Errors 6 | . . 4 2 Matter Fused 3 | . . 3 . Energy Discharges 2 | . . 2 . Data Loss (minor) 2 | . . 2 . Data Loss (major) 1 | . . . 1 Misfires 1 | . . 1 . Overload Shots . | . . . . Overflow Damage 35 | . . 35 . Projectiles . | . . . . Explosions 35 | . . 35 . Melee . | . . . . Knockbacks . | . . . . Impact . | . . . . Kinetic . | . . . . Secondary . | . . . . Self-Inflicted Damage 63 | . . 41 22 Shots 2 | . . 1 1 Rammed . | . . . . Targets Rammed . | . . . . Kicked . | . . . . Crushed . | . . . . Highest Temperature 108 | . 18 4 108 Average Temperature 12 | . 5 2 37 Received Heat Transfer 260 | . 12 36 212 Siege Activations . | . . . . Martial Activations . | . . . . Shielding Activations . | . . . . Robots Disrupted . | . . . . Combat Hostiles . | . . . . Robots Corrupted . | . . . . Combat Hostiles . | . . . . Parts Fried . | . . . . Impact Corruptions . | . . . . Robots Melted . | . . . . Combat Hostiles . | . . . . Parts Melted 4 | . 2 1 1 Heat Transferred 2183 | . 1591 333 259 Parts Sabotaged . | . . . . Parts Stolen . | . . . . Parts Stripped . | . . . . Power Chain Reactions . | . . . . Alert | -11 -10 -10 -8 ------- Run | Yrd Mat Sub Rec Maximum Alert Level . | . . . . Low Security (%) 100 | 100 100 . 100 Level 1 . | . . . . Level 2 . | . . . . Level 3 . | . . . . Level 4 . | . . . . Level 5 . | . . . . High Security . | . . . . Max Security . | . . . . Peak Influence 180 | . 180 . 88 Initial 88 | . . . 88 Average 27 | . 32 . 26 Influence Increases 581 | . 279 225 77 Destroy 0b10 Robot/C 300 | . 160 120 20 Destroy 0b10 Robot/NC 20 | . 15 . 5 Destroy Leader 30 | . 30 . . Successful Hack 19 | . 12 . 7 Disable Machine 60 | . 15 . 45 Destroy Structure 2 | . 2 . . Lose Combat Pursuer 150 | . 45 105 . Influence Decreases 561 | . 131 187 243 Entered New Map 170 | . . 72 98 Time Decay 333 | . 131 95 107 Lost Part 40 | . . 20 20 Purge Threat 18 | . . . 18 Squads Dispatched 1 | . 1 . . Investigation . | . . . . Extermination . | . . . . Reinforcement 1 | . 1 . . Assault . | . . . . Garrison . | . . . . Intercept . | . . . . Searches Triggered . | . . . . Construction Impeded . | . . . . Haulers Reinforced . | . . . . Active Scanning Responses . | . . . . Cargo Convoy Interrupts . | . . . . Stealth | -11 -10 -10 -8 --------- Run | Yrd Mat Sub Rec Distress Signals 2 | . 2 . . Communications Jammed . | . . . . Distress Signals . | . . . . Times Spotted 27 | . 16 7 4 Peak Tracking Total 6 | . 6 3 4 Tactical Retreats 5 | . 3 2 . Traps | -11 -10 -10 -8 ------- Run | Yrd Mat Sub Rec Traps Triggered 6 | . 2 4 . Indirectly . | . . . . Trap Hack Attempts . | . . . . Triggered . | . . . . Disarmed . | . . . . Reprogrammed . | . . . . Reused . | . . . . Traps Extracted . | . . . . Installed . | . . . . Triggered . | . . . . Machines | -11 -10 -10 -8 ---------- Run | Yrd Mat Sub Rec Machines Disabled 9 | . 1 4 4 Max in Single Turn 4 | . 1 3 4 Machines Repaired . | . . . . Machines Dismantled . | . . . . Machines Sabotaged . | . . . . Overloaded Fab Kills . | . . . . Hacking | -11 -10 -10 -8 --------- Run | Yrd Mat Sub Rec Machines Accessed 6 | . 2 1 3 Terminals 4 | . 2 . 2 Fabricators . | . . . . Repair Stations . | . . . . Recycling Units . | . . . . Scanalyzers . | . . . . Garrison Access . | . . . . Total Hacks 15 | . 5 4 6 Successful 10 | . 2 4 4 Failed 4 | . 2 . 2 Catastrophic 1 | . 1 . . Database Lockouts 1 | . 1 . . Manual 5 | . 5 . . Terminals 9 | . 5 . 4 Fabricators . | . . . . Repair Stations . | . . . . Recycling Units . | . . . . Scanalyzers . | . . . . Garrison Access . | . . . . Terminal Hacks 9 | . 1 4 4 Record 4 | . . 4 . Robot Analysis 1 | . 1 . . Unreport Threat 2 | . . . 2 Release Object 2 | . . . 2 Fabricator Hacks . | . . . . Repair Station Hacks . | . . . . Recycling Unit Hacks . | . . . . Scanalyzer . | . . . . Garrison Access Hacks . | . . . . Unauthorized Hacks 1 | . 1 . . Terminals 1 | . 1 . . Operators 1 | . 1 . . Fabricators . | . . . . Repair Stations . | . . . . Recycling Units . | . . . . Scanalyzers . | . . . . Garrison Access . | . . . . Data Cores Recovered . | . . . . Used . | . . . . Hacking Detections 3 | . 1 . 2 Full Trace Events . | . . . . Feedback Events . | . . . . Feedback Blocked . | . . . . Robot Schematics Acquired . | . . . . Robots Built . | . . . . Authchips . | . . . . Time . | . . . . Total Robot Build Rating . | . . . . Part Schematics Acquired . | . . . . Parts Built . | . . . . Authchips . | . . . . Time . | . . . . Total Part Build Rating . | . . . . Part Studies Acquired . | . . . . Parts Repaired . | . . . . Time . | . . . . Parts Recycled . | . . . . Recycled Matter . | . . . . Retrieved Matter . | . . . . Retrieved Components . | . . . . Parts Scanalyzed . | . . . . Part Schematics Acquired . | . . . . Parts Damaged . | . . . . Bothacking | -11 -10 -10 -8 ------------ Run | Yrd Mat Sub Rec Used RIF Installer . | . . . . Robots Hacked . | . . . . Non-combat . | . . . . Combat . | . . . . Robot Hacks Applied . | . . . . Relay Couplers Released . | . . . . Fabnet Peak Effective % . | . . . . Robots Rewired . | . . . . Allies Hacked . | . . . . Hacks Repelled . | . . . . Allies | -11 -10 -10 -8 -------- Run | Yrd Mat Sub Rec Total Allies . | . . . . Largest Group . | . . . . Highest-Rated Group . | . . . . Highest-Rated Ally . | . . . . Total Orders . | . . . . Ally Attacks . | . . . . Total Damage . | . . . . Kills . | . . . . Allies Corrupted . | . . . . Allies Melted . | . . . . Intel | -11 -10 -10 -8 ------- Run | Yrd Mat Sub Rec Active Infowar (turns) 1002 | . . 667 335 Machine Analysis 1002 | . . 667 335 Robot Analysis Total 1 | . 1 . . Derelict Logs Recovered . | . . . . Drone Launches . | . . . . Drone Recoveries . | . . . . Exploration | -11 -10 -10 -8 ------------- Run | Yrd Mat Sub Rec Turns Passed 3155 | 86 547 2175 347 Spaces Moved 1870 | 53 235 1221 361 Core 65 | 9 . 11 45 Treads 1489 | 44 235 1210 . Legs . | . . . . Wheels . | . . . . Hover 316 | . . . 316 Flight . | . . . . Fastest Speed 50 | 50 160 160 56 Average Speed 146 | 141 160 161 86 Slowest Speed 300 | 160 160 300 300 Overloaded Moves . | . . . . Propulsion Burnouts . | . . . . Robots Hopped . | . . . . Potential Cave-ins . | . . . . Cave-ins Triggered . | . . . . Exploration Rate (%) 36 | 4 33 61 48 Regions Visited 3 Branch Regions 2 Pre-discovered Areas . | . . . . Known Exits Taken . | . . . . Unknown Exits Taken 3 | 1 1 1 . Scrap Searched 6 | . . 6 . Spaces Dug . | . . . . Terrain Destroyed 96 | . . 96 . Melee . | . . . . Projectile . | . . . . AOE 96 | . . 96 . Terrain Rammed . | . . . . Walls Destroyed . | . . . . Machines Disabled . | . . . . Actions | -11 -10 -10 -8 --------- Run | Yrd Mat Sub Rec Total 2151 | 60 333 1373 385 Wait 129 | . 29 100 . Move 1867 | 52 234 1220 361 Hop . | . . . . Pick Up 20 | . 14 6 . Fast Attach 15 | 6 3 4 2 Attach 5 | . 1 . 4 Detach 1 | . . . 1 Swap 11 | 2 3 5 1 Drop 22 | . 10 8 4 Fire 73 | . 39 25 9 Melee 8 | . . 5 3 Ram . | . . . . Kick . | . . . . Crush . | . . . . Escape Stasis . | . . . . Rewire . | . . . . Trap . | . . . . Miscellaneous . | . . . . Route ------- -11/Scrapyard -10/Materials (discovered 3 exits: [*Mat] / [*Min] / *Sub) -10/Subcaves -8/Recycling (discovered 1 exit: [*Fac]) History --------- Turn | Location | Event 30 | -11/Scrapyard | Discovered new exit (range 16) 87 | -11/Scrapyard | Entered Materials 336 | -10/Materials | Build established: Mutant 473 | -10/Materials | Discovered new exit (range 4) 575 | -10/Materials | Destroyed 7 combat bots 579 | -10/Materials | Central database locked down 615 | -10/Materials | Discovered new exit (range 13) 617 | -10/Materials | Discovered new exit (range 8) 634 | -10/Materials | Entered Subcaves 635 | -10/Subcaves | Approached by a straggling Scientist 2404 | -10/Subcaves | Shifting Twisted Machinery released Mak. Light Armor Plating 2463 | -10/Subcaves | Visited Clippyterm 2467 | -10/Subcaves | Learned Factory stockpile data 2486 | -10/Subcaves | Shifting Twisted Machinery released Mak. Spear 2773 | -10/Subcaves | Discovered new exit (range 11) 2809 | -10/Subcaves | Entered Recycling 3014 | -8/Recycling | Discovered new exit (range 8) 3119 | -8/Recycling | Scanned before Scraplab entrance 3127 | -8/Recycling | Entered Scraplab 3133 | -8/Recycling | Discovered new exit (range 3) 3144 | -8/Recycling | Angered Scraplab inhabitants 3146 | -8/Recycling | Found Prototype Device 3146 | -8/Recycling | Identified Scrap Engine 3149 | -8/Recycling | Core integrity fell below 50% 3154 | -8/Recycling | Core integrity fell below 20% 3156 | -8/Recycling | Destroyed by UN-OOU(j) with Overtuned Pulse Rifle Last Messages --------------- >>Release Inventory Accessing inventory controls... Prototype released... URGENT: Link to external system right away! 03145_ KN-POF(j): "Defend the Scraplab!" 03145_ Critical hit (Burn: +50). 03146_ Acquired Prototype Device. 03146_ Identified Scrap Engine. 03147_ Machine disabled. 03147_ Scrap Engine Manual disabled. 03147_ 7F-SB0(c) destroyed. 03147_ Supplies damaged. 03147_ Scraplab SEP disabled. 03149_ Sub. Shrapnel Launcher destroyed. 03150_ Acquired Mak. Spear. 03151_ HE-00B(j) heat short circuits Mak. Salvage Targeting Computer. 03151_ Imp. Hover Unit destroyed. 03151_ Critical hit (Burn: +50). 03156_ HE-00B(j) destroyed. Map ----- +----------------------------------------------------+ | | | | | | | | | | | | | | | | | | | | | | | | | | | | | | | | | | | | | | | | | ???????????????????????############??????????????? | | ???????????????????????#"""""""#< #??????????????? | | ???????????????????????# " " ## #??????????????? | | ?????????????????####### j c #??????????????? | | ????????????????## j ;= ! #??????????????? | | ????????????????# #####%@ [ #??????????????? | | ????????????????## #???#![ %= #??????????????? | | ?????????????????# #???#"& & ! #??????????????? | | ?????????????????# #???# #??????????????? | | ??????????????#####################??????????????? | | ??????????????# #??????????????????????????? | | ??????????????# #??????????????????????????? | | ??????????????# #??????????????????????????? | | ??????????????# #??????????????????????????? | | ??????????????####+####??????????????????????????? | | ?????????????????# #???################??????????? | | ?????????????????# #???# ##?????????? | | ?????????????????# #????# #?????????? | | ?????????????##### #????# #??????????? | | ?????????????# # #????# #??????????? | | ??????+###+### %# #########+##########??????????? | | ?????# #????????????? | | ?????# #????????????? | | ?????# #????????????? | | ?????# ###########+#########+######????????????? | | ?????# ?????????# #?# #?????????????? | | ?????# ??????????# #?# #?????????????? | | ?????????????????# #?# #?????????????? | | ?????????????????# #?# """ """ #?????????????? | | ?????????????????# #?# """ """ #?????????????? | +----------------------------------------------------+ Best States ------------- Heat Dissipation 47 Energy Generation 10 Energy Capacity 250 Matter Stores 300 Matter Capacity 300 Sight Range 16 Terrain Scan Density 10 Evasion (%) 53 Recoil Reduction 2 Item Schematics ----------------- None Robot Schematics ------------------ None Fabricated ------------ Nothing Repaired ---------- Nothing Studied --------- None Alien Tech Used ----------------- None Achievements -------------- None Challenges ------------ None Game ------ Seed WeldingDerelictScanner Manual? 0 Play Time 00:15:57 Cumulative 481.1 hours Start 2025.10.24 @ 16:40:56 End 2025.10.24 @ 17:14:41 Sessions 1 Manual Loads 0 Difficulty Rogue Special Mode None Game No. 811 Rogue 656 Adventurer 148 Explorer 7 Win Type - Total 24 Types 19/1/3/1/0/0/0/0/0/0 Lore% 69 Gallery% 76 Achievement% 54 Wizard Run 0 Options --------- Layout 1 ASCII 0 Keyboard 0 Movement Numpad Keybinds 0 Fullscreen 2 Font 24/Smallcaps Map View 50x35 Zoom Use 0% Tactical HUD 1 Map Filters NONE Filters NONE Steam 1 RUN: 423937ac-ba9c-4dd9-88c0-570cf07e2fac